Cogmind - Beta 16 @@@ ROGUE MODE // 2025.10.28 @ 10:44:39 Player: QXander Result: Destroyed by G-47 Trooper with Particle Gun Performance ------------- Evolutions (0) 0 Regions Visited (2) 400 Robots Destroyed (19) 95 Value Destroyed (372) 372 Prototype IDs (0) 0 Alien Tech Used (0) 0 Bonus (0) 0 TOTAL SCORE: 867 Bonus ------- None Cogmind --------- Core Integrity 0/250 Matter 300/300 Energy 125/125 System Corruption 0% Temperature Cool (15) Movement Walking (120) Location -10/Mines Parts ------- > --- POWER (1) -------- Light Ion Engine > --- PROPULSION (2) --- Aluminum Leg Aluminum Leg > --- UTILITY (2) ------ Improved Heat Sink Seismic Detector > --- WEAPON (2) ------- Light Assault Rifle Light Assault Rifle > --- INVENTORY (5) ---- Light Ion Engine Heat Sink Small Laser Peak State ------------ > --- POWER ------------ Ion Engine > --- PROPULSION ------- Aluminum Leg Aluminum Leg > --- UTILITY ---------- Improved Heat Sink Small Storage Unit > --- WEAPON ----------- Small Laser Light Assault Rifle > --- INVENTORY -------- Light Ion Engine Aluminum Leg Aluminum Leg Compact Wheel Heat Sink [Rating: 9] Favorites ----------- Power Ion Engine Engine Ion Engine Propulsion Aluminum Leg Leg Aluminum Leg Wheel Compact Wheel Utility Small Storage Unit Device Improved Heat Sink Storage Small Storage Unit Weapon Light Assault Rifle Energy Gun Small Laser Ballistic Gun Light Assault Rifle Ballistic Cannon Light Cannon Special Weapon Mining Laser Build | -11 -10 -10 ------- Run | Yrd Mat Min Slots Evolved . | . . . Power . | . . . Propulsion . | . . . Utility . | . . . Weapon . | . . . Parts Attached 20 | 6 2 12 Power 3 | 1 . 2 Engine 3 | 1 . 2 Core . | . . . Reactor . | . . . Propulsion 7 | 2 1 4 Treads . | . . . Leg 4 | . . 4 Wheel 3 | 2 1 . Hover . | . . . Flight . | . . . Utility 3 | 1 . 2 Device 2 | . . 2 Storage 1 | 1 . . Processor . | . . . Hackware . | . . . Protection . | . . . Artifact . | . . . Weapon 7 | 2 1 4 Energy Gun 1 | . . 1 Energy Cannon . | . . . Ballistic Gun 4 | 2 . 2 Ballistic Cannon 1 | . 1 . Launcher . | . . . Special Weapon 1 | . . 1 Impact Weapon . | . . . Slashing Weapon . | . . . Piercing Weapon . | . . . Special Melee Weapon . | . . . Unidentified Prototypes . | . . . Parts Lost 7 | . 1 6 Power 1 | . . 1 Propulsion 2 | . . 2 Utility . | . . . Weapon 4 | . 1 3 Highest Loss Streak 4 | . 1 4 To Critical Strikes . | . . . Average Backups 3 | . 2 3 Power . | . 1 1 Propulsion . | . . . Utility . | . . 1 Weapon . | . . . Tool/Special . | . . . Unused Backups 2 | . . 2 Power 1 | . . 1 Propulsion . | . . . Utility 1 | . . 1 Weapon . | . . . Tool/Special . | . . . Average Slot Usage (%) 84 | . 84 83 Engine 11 | . 14 9 Leg 11 | . . 21 Wheel 14 | . 28 3 Device 5 | . . 10 Storage 13 | . 14 12 Energy Gun 1 | . . 3 Ballistic Gun 18 | . 18 18 Ballistic Cannon 4 | . 8 . Special Weapon 1 | . . 2 Peak Build Rating 9 | 6 6 9 Average Rating 6 | 4 5 7 On Entrance 4 | . 6 6 Avg Prop Armor Cover (%) 4 | . . 4 Naked Turns . | . . . Heaviest Build 14 | 12 14 13 Greatest Support 26 | 26 26 20 Greatest Overweight (x) 3 | 3 . . Average Overweight (x) . | . . . Largest Inventory Capacity 8 | 8 8 8 Average Capacity 7 | 7 8 7 Most Carried 7 | 1 5 7 Average Carried 3 | . 3 3 Final Capacity 8 | 8 8 5 Final Carried 4 | 1 4 3 Class Distribution -------------------- 64% | Mutant 35% | Scavenger-Mutant Dominant Class ---------------- Mutant | -10/Materials Scavenger-Mutant | -10/Mines Resources | -11 -10 -10 ----------- Run | Yrd Mat Min Matter Collected 554 | 191 184 179 Remotely . | . . . Salvage Created 612 | . 322 290 Parts 44 | . 23 21 Haulers Intercepted . | . . . Recyclers Shooed 3 | . . 3 Parts Field Recycled . | . . . Retrieved Matter . | . . . Parts Self-Destructed . | . . . Prevented . | . . . Parts Restored . | . . . Kills | -11 -10 -10 ------- Run | Yrd Mat Min Combat Hostiles Destroyed 16 | . 9 7 Guns 11 | . 4 7 Cannons 5 | . 5 . Classes Destroyed 3 | . 3 . Recycler 3 | . 2 1 Swarmer 9 | . 6 3 Grunt 7 | . 3 4 Best Kill Streak 5 | . 5 3 Combat Bots Only 4 | . 4 3 Max Kills in Single Turn 2 | . 2 1 Gunslinging . | . . . Exploded . | . . . Melee . | . . . Uniques/NPCs Destroyed . | . . . Combat | -11 -10 -10 -------- Run | Yrd Mat Min Hostile Shots Fired 140 | . 37 103 Missed 42 | . 14 28 Hits 98 | . 23 75 Projectile 98 | . 23 75 Damage Taken 1066 | . 238 828 Core 263 | . 62 201 Absorbed by Shields . | . . . Core Remaining (%) 100 | 100 . . Volleys Fired 85 | . 23 62 Largest 2 | . 2 2 Hottest 100 | . 50 100 Shots Fired 119 | . 46 73 Gun 100 | . 28 72 Cannon 18 | . 18 . Launcher . | . . . Special 1 | . . 1 Kinetic 95 | . 46 49 Thermal 24 | . . 24 Explosive . | . . . Electromagnetic . | . . . Robot Hit Streak 12 | . 12 7 Robot Miss Streak 4 | . 3 4 Penetration Max . | . . . Secondary Targets 1 | . . 1 Max Gunslinging Chain 1 | . . 1 Shots Hit Robots 80 | . 31 49 Core Hits 39 | . 20 19 Critical Kills . | . . . Critical Parts Destroyed . | . . . Critical Strikes . | . . . Melee Attacks . | . . . Impact . | . . . Slashing . | . . . Piercing . | . . . Sneak Attacks . | . . . Combat Hostiles . | . . . Follow-up Attacks . | . . . Damage Inflicted 847 | . 397 450 Guns 621 | . 171 450 Cannons 226 | . 226 . Explosions . | . . . Melee . | . . . Ramming . | . . . Kinetic 671 | . 397 274 Thermal 176 | . . 176 Explosive . | . . . Electromagnetic . | . . . Impact . | . . . Slashing . | . . . Piercing . | . . . Highest Corruption . | . . . Average Corruption . | . . . Corruption Purged . | . . . Corruption Blocked . | . . . Overload Shots . | . . . Overflow Damage . | . . . Projectiles . | . . . Explosions . | . . . Melee . | . . . Knockbacks 1 | . 1 . Impact . | . . . Kinetic 1 | . 1 . Secondary . | . . . Self-Inflicted Damage . | . . . Shots . | . . . Rammed . | . . . Targets Rammed . | . . . Kicked . | . . . Crushed . | . . . Highest Temperature 26 | . 26 19 Average Temperature 9 | . 10 7 Received Heat Transfer 381 | . 75 306 Siege Activations . | . . . Martial Activations . | . . . Shielding Activations . | . . . Robots Disrupted . | . . . Combat Hostiles . | . . . Robots Corrupted . | . . . Combat Hostiles . | . . . Parts Fried . | . . . Impact Corruptions . | . . . Robots Melted . | . . . Combat Hostiles . | . . . Parts Melted . | . . . Heat Transferred 400 | . . 400 Parts Sabotaged . | . . . Parts Stolen . | . . . Parts Stripped . | . . . Power Chain Reactions . | . . . Alert | -11 -10 -10 ------- Run | Yrd Mat Min Maximum Alert Level . | . . . Low Security (%) 100 | 100 100 100 Level 1 . | . . . Level 2 . | . . . Level 3 . | . . . Level 4 . | . . . Level 5 . | . . . High Security . | . . . Max Security . | . . . Peak Influence 152 | . 152 60 Initial 55 | . . 55 Average 31 | . 48 21 Influence Increases 445 | . 270 175 Destroy 0b10 Robot/C 320 | . 180 140 Destroy 0b10 Robot/NC 15 | . 10 5 Destroy Leader 50 | . 20 30 Lose Combat Pursuer 60 | . 60 . Influence Decreases 445 | . 126 319 Entered New Map 89 | . . 89 Time Decay 286 | . 116 170 Lost Part 70 | . 10 60 Squads Dispatched 1 | . 1 . Investigation . | . . . Extermination . | . . . Reinforcement 1 | . 1 . Assault . | . . . Garrison . | . . . Intercept . | . . . Searches Triggered . | . . . Construction Impeded . | . . . Haulers Reinforced . | . . . Active Scanning Responses . | . . . Cargo Convoy Interrupts . | . . . Stealth | -11 -10 -10 --------- Run | Yrd Mat Min Distress Signals 2 | . 2 . Communications Jammed . | . . . Distress Signals . | . . . Times Spotted 24 | . 15 9 Peak Tracking Total 5 | . 5 3 Tactical Retreats 3 | . 3 . Traps | -11 -10 -10 ------- Run | Yrd Mat Min Traps Triggered . | . . . Indirectly . | . . . Trap Hack Attempts . | . . . Triggered . | . . . Disarmed . | . . . Reprogrammed . | . . . Reused . | . . . Traps Extracted . | . . . Installed . | . . . Triggered . | . . . Machines | -11 -10 -10 ---------- Run | Yrd Mat Min Machines Disabled 1 | . 1 . Max in Single Turn 1 | . 1 . Machines Repaired . | . . . Machines Dismantled . | . . . Machines Sabotaged . | . . . Overloaded Fab Kills . | . . . Hacking | -11 -10 -10 --------- Run | Yrd Mat Min Machines Accessed 1 | . 1 . Terminals . | . . . Fabricators . | . . . Repair Stations . | . . . Recycling Units 1 | . 1 . Scanalyzers . | . . . Garrison Access . | . . . Total Hacks 3 | . 3 . Successful 2 | . 2 . Failed 1 | . 1 . Catastrophic . | . . . Database Lockouts . | . . . Manual . | . . . Terminals . | . . . Fabricators . | . . . Repair Stations . | . . . Recycling Units 3 | . 3 . Scanalyzers . | . . . Garrison Access . | . . . Terminal Hacks . | . . . Fabricator Hacks . | . . . Repair Station Hacks . | . . . Recycling Unit Hacks 2 | . 2 . Report Inventory 1 | . 1 . Retrieve Components 1 | . 1 . Scanalyzer . | . . . Garrison Access Hacks . | . . . Unauthorized Hacks . | . . . Terminals . | . . . Fabricators . | . . . Repair Stations . | . . . Recycling Units . | . . . Scanalyzers . | . . . Garrison Access . | . . . Data Cores Recovered . | . . . Used . | . . . Hacking Detections 1 | . 1 . Full Trace Events . | . . . Feedback Events . | . . . Feedback Blocked . | . . . Robot Schematics Acquired . | . . . Robots Built . | . . . Authchips . | . . . Time . | . . . Total Robot Build Rating . | . . . Part Schematics Acquired . | . . . Parts Built . | . . . Authchips . | . . . Time . | . . . Total Part Build Rating . | . . . Part Studies Acquired . | . . . Parts Repaired . | . . . Time . | . . . Parts Recycled . | . . . Recycled Matter . | . . . Retrieved Matter . | . . . Retrieved Components 3 | . 3 . Parts Scanalyzed . | . . . Part Schematics Acquired . | . . . Parts Damaged . | . . . Bothacking | -11 -10 -10 ------------ Run | Yrd Mat Min Used RIF Installer . | . . . Robots Hacked . | . . . Non-combat . | . . . Combat . | . . . Robot Hacks Applied . | . . . Relay Couplers Released . | . . . Fabnet Peak Effective % . | . . . Robots Rewired . | . . . Allies Hacked . | . . . Hacks Repelled . | . . . Allies | -11 -10 -10 -------- Run | Yrd Mat Min Total Allies . | . . . Largest Group . | . . . Highest-Rated Group . | . . . Highest-Rated Ally . | . . . Total Orders . | . . . Ally Attacks . | . . . Total Damage . | . . . Kills . | . . . Allies Corrupted . | . . . Allies Melted . | . . . Intel | -11 -10 -10 ------- Run | Yrd Mat Min Active Infowar (turns) 38 | . . 38 Seismic 38 | . . 38 Robot Analysis Total . | . . . Derelict Logs Recovered 1 | . . 1 Drone Launches . | . . . Drone Recoveries . | . . . Exploration | -11 -10 -10 ------------- Run | Yrd Mat Min Turns Passed 994 | 70 422 502 Spaces Moved 711 | 59 361 291 Core 9 | 9 . . Treads . | . . . Legs 284 | . . 284 Wheels 418 | 50 361 7 Hover . | . . . Flight . | . . . Fastest Speed 50 | 50 90 100 Average Speed 102 | 95 90 119 Slowest Speed 200 | 200 90 120 Overloaded Moves . | . . . Propulsion Burnouts . | . . . Robots Hopped . | . . . Potential Cave-ins . | . . . Cave-ins Triggered . | . . . Exploration Rate (%) 31 | 3 29 63 Regions Visited 2 Branch Regions 1 Pre-discovered Areas . | . . . Known Exits Taken . | . . . Unknown Exits Taken 2 | 1 1 . Scrap Searched 1 | . . 1 Spaces Dug . | . . . Terrain Destroyed . | . . . Melee . | . . . Projectile . | . . . AOE . | . . . Terrain Rammed . | . . . Walls Destroyed . | . . . Machines Disabled . | . . . Actions | -11 -10 -10 --------- Run | Yrd Mat Min Total 864 | 69 417 378 Wait 29 | 2 27 . Move 709 | 58 360 291 Hop . | . . . Pick Up 8 | 1 3 4 Fast Attach 12 | 6 . 6 Attach 6 | 1 2 3 Detach 4 | 1 1 2 Swap 6 | . 1 5 Drop 5 | . . 5 Fire 85 | . 23 62 Melee . | . . . Ram . | . . . Kick . | . . . Crush . | . . . Escape Stasis . | . . . Rewire . | . . . Trap . | . . . Miscellaneous . | . . . Route ------- -11/Scrapyard -10/Materials -10/Mines (discovered 1 exit: [*Mat]) History --------- Turn | Location | Event 29 | -11/Scrapyard | Discovered new exit (range 15) 71 | -11/Scrapyard | Entered Materials 316 | -10/Materials | Build established: Mutant 431 | -10/Materials | Discovered new exit (range 10) 493 | -10/Materials | Entered Mines 554 | -10/Mines | Lost 4 parts (1p1n2w) 614 | -10/Mines | Core integrity fell below 50% 666 | -10/Mines | Lost 3 parts (1n2w) 712 | -10/Mines | Core integrity fell below 20% 941 | -10/Mines | Build established: Scavenger-Mutant 965 | -10/Mines | Learned 8 Materials zone layouts 982 | -10/Mines | Discovered new exit (range 12) 995 | -10/Mines | Destroyed by G-47 Trooper with Particle Gun Last Messages --------------- 00747_ Dropped Aluminum Leg. 00748_ Dropped Com. Wheel. 00751_ Acquired 14 matter. 00752_ Acquired 19 matter. 00755_ Acquired 7 matter. 00853_ T-07 Excavator is excavating. 00950_ Searching scrap... 00950_ Found Lrg. Storage Unit. 00950_ Found Heat Sink. 00950_ Found Sml. Battery. 00950_ Found Seismic Detector. 00950_ Found 37 Matter. 00955_ Acquired Seismic Detector. 00957_ Dropped Sml. Storage Unit. 00958_ Acquired 10 matter. 00965_ Acquired derelict log, extracted data. Data stored: Materials zone layouts (x8). 00982_ EXIT=FOUND 00989_ K-01 Serf cleans the Seismic Survey Station. Map ----- +----------------------------------------------------+ | ?# ###???????????###???# ##???? | | ?# #???####?????# ##??# #???? | | ## ##### ##??## #??## #???? | | #### #???######## # ##???? | | ## ##### #??????????# ## ##????? | | ?# #???## #??????????# #########?????? | | ?# ###?## ##??????????#! #?????????????? | | ## ### % ###???????????#%!#?????????????? | | # ##?????????????#!!#?????????????? | | # % % = ##?####????????# #?????????????? | | %== ### ##???????# #?????????????? | | #####= *= #???????# #?????????????? | | ##???## = #???????# #?????????????? | | ##????### ##???????# #?????????????? | | #??????## ########## #?????????????? | | ##??????# ## #?????????????? | | ###????## ### ##########?????????????? | | ##????######?# #??????????????????????? | | #?????????# #??????????????????????? | | ### #????????# #??????????????????????? | | ##?## #??????### ###????????????????????? | | # #???# ######??# #??#?????????????????? | | # #????##### ##?#""" ## #?????????????????? | | # #??????## #?#"""g #?????????????????? | | ## ##?????## #?#""" g #?????????????????? | | ?# ##??????# ###k @ ## #?????????????????? | | ?# #???????# < #? #?????????????????? | | ?# #????????# ### #??#?????????????????? | | ?# #????????## #########????????????????????? | | ?# ######????# #???????????????????????????? | | ?# #???## #???????????????????????????? | | ?# #??##% #???????????????????????????? | | ?###### #### % ##???????????????????????????? | | ??????# ##????????????????????????????? | | ??????###### ##?????????????????????????????? | | ???????????## ##??????????????????????????????? | | ????????????#####???????????????????????????????? | | ????????????????????????????????????????????????? | | | | | | | | | | | | | | | | | | | | | | | | | +----------------------------------------------------+ Best States ------------- Heat Dissipation 39 Energy Generation 10 Energy Capacity 250 Matter Stores 300 Matter Capacity 300 Sight Range 16 Terrain Scan Density 10 Evasion (%) 55 Item Schematics ----------------- None Robot Schematics ------------------ None Fabricated ------------ Nothing Repaired ---------- Nothing Studied --------- None Alien Tech Used ----------------- None Achievements -------------- None Challenges ------------ None Game ------ Seed EnhancedGaussBroadsword Manual? 0 Play Time 00:10:49 Cumulative 23.1 hours Start 2025.10.28 @ 10:36:43 End 2025.10.28 @ 10:44:39 Sessions 1 Manual Loads 0 Difficulty Rogue Special Mode None Game No. 30 Rogue 30 Adventurer 0 Explorer 0 Win Type - Total 0 Types 0/0/0/0/0/0/0/0/0/0 Lore% 22 Gallery% 24 Achievement% 11 Wizard Run 0 Options --------- Layout 1 ASCII 0 Keyboard 1 Movement Arrows Keybinds 0 Fullscreen 2 Font 24/Smallcaps Map View 50x35 Zoom Use 0% Tactical HUD 1 Map Filters NONE Filters NONE Steam 1 RUN: 065f9802-bdaf-4d23-b7b2-1c9987e2a9c9